Department Family,Entity,Date Paid,Expense Type,Expenses Area,Supplier Name,Transaction Reference,Total,VAT Registration Number
Department of Health,Imperial College Healthcare NHS Trust,02/10/2017,Miscellaneous Expenditure,Other Hq Departments,Medicell International Ltd,3645335,"26,437.50",Optional requirement only
Department of Health,Imperial College Healthcare NHS Trust,03/10/2017,Blood Products,Pathology,Nhs Blood And Transplant,2114,"80,397.56",Optional requirement only
Department of Health,Imperial College Healthcare NHS Trust,03/10/2017,Buildings-Additions-Purchased,Nwlp Capital Summary,Princebuild Limited,3635257,"43,508.10",Optional requirement only
Department of Health,Imperial College Healthcare NHS Trust,03/10/2017,Buildings-Add(Prof Fee)-Purch,Capital Summary,Building Design Partnership Ltd,3645965,"46,023.76",Optional requirement only
Department of Health,Imperial College Healthcare NHS Trust,03/10/2017,Clinical Managed Service Contr,Pathology,Genmed.Me Ltd,1634,"45,388.19",Optional requirement only
Department of Health,Imperial College Healthcare NHS Trust,03/10/2017,Clinical Managed Service Contr,Pathology,Genmed.Me Ltd,2133,"582,500.00",Optional requirement only
Department of Health,Imperial College Healthcare NHS Trust,03/10/2017,Decontamination Services,Nursing Directorate,Berendsen Uk,3644991,"335,545.37",Optional requirement only
Department of Health,Imperial College Healthcare NHS Trust,03/10/2017,Jac - Stock,Stock,Csl Behring Uk Ltd,3639230,"59,150.00",Optional requirement only
Department of Health,Imperial College Healthcare NHS Trust,03/10/2017,Jac - Stock,Stock,Qualasept Ltd,3642438,"51,552.00",Optional requirement only
Department of Health,Imperial College Healthcare NHS Trust,03/10/2017,Jac - Stock,Stock,Qualasept Ltd,3644975,"37,992.00",Optional requirement only
Department of Health,Imperial College Healthcare NHS Trust,03/10/2017,Jac - Stock,Stock,Roche Products Ltd,3635104,"52,939.32",Optional requirement only
Department of Health,Imperial College Healthcare NHS Trust,03/10/2017,Lease Rents,Div Of Med & Integrated Care,Hayes Cottage Renal Unit Ltd,3643728,"76,508.25",Optional requirement only
Department of Health,Imperial College Healthcare NHS Trust,03/10/2017,Other Gen Supplies & Srv,Information & Comms Technology,Crown Records Management,3643682,"37,589.98",Optional requirement only
Department of Health,Imperial College Healthcare NHS Trust,03/10/2017,Other Research Exp - Non-Pay,Rd Medical Directorate,Chelsea And  Westminster Hospital Nhs Ft,3643707,"351,393.00",Optional requirement only
Department of Health,Imperial College Healthcare NHS Trust,03/10/2017,P & M-Additions-Purchased,Capital Summary,Life Technologies Ltd,3646136,"117,758.32",Optional requirement only
Department of Health,Imperial College Healthcare NHS Trust,03/10/2017,Service Charge,Div Of Med & Integrated Care,Chelsea And  Westminster Hospital Nhs Ft,3644921,"182,577.00",Optional requirement only
Department of Health,Imperial College Healthcare NHS Trust,03/10/2017,Services Received - Nhsts,Div Of Women & Clin Support,Bham Womens & Childrens Nhs Ft,3646168,"38,712.24",Optional requirement only
Department of Health,Imperial College Healthcare NHS Trust,05/10/2017,Acton Housing Association,Housing Deductions,A2dominion Housing Group Ltd,3646544,"194,681.31",Optional requirement only
Department of Health,Imperial College Healthcare NHS Trust,05/10/2017,Agency Nursing: Qualified,Div Of Med & Integrated Care,Reed,3646189,"158,660.65",Optional requirement only
Department of Health,Imperial College Healthcare NHS Trust,05/10/2017,Agency Nursing: Qualified,"Div Of Surg, Cardiov & Cancer",Reed,3646189,"88,502.62",Optional requirement only
Department of Health,Imperial College Healthcare NHS Trust,05/10/2017,Agency Nursing: Qualified,Div Of Women & Clin Support,Reed,3646189,"47,781.75",Optional requirement only
Department of Health,Imperial College Healthcare NHS Trust,05/10/2017,Agency Scient & Prof Qualified,"Div Of Surg, Cardiov & Cancer",Reed,3644992,"35,975.67",Optional requirement only
Department of Health,Imperial College Healthcare NHS Trust,05/10/2017,Agency Scient & Prof Qualified,Pathology,Reed,2137,"47,204.33",Optional requirement only
Department of Health,Imperial College Healthcare NHS Trust,05/10/2017,Blood Products,Pathology,Nhs Blood And Transplant,2232,"169,495.67",Optional requirement only
Department of Health,Imperial College Healthcare NHS Trust,05/10/2017,Buildings-Additions-Purchased,Capital Summary,Princebuild Limited,3647002,"68,137.14",Optional requirement only
Department of Health,Imperial College Healthcare NHS Trust,05/10/2017,Buildings-Add(Prof Fee)-Purch,Capital Summary,Aecom,3633269,"36,264.00",Optional requirement only
Department of Health,Imperial College Healthcare NHS Trust,05/10/2017,Cleaning Materials,Nursing Directorate,Synergy Health Managed Services Ltd,3646145,"42,030.19",Optional requirement only
Department of Health,Imperial College Healthcare NHS Trust,05/10/2017,Clinical Managed Service Contr,Pathology,Beckman Coulter Uk Ltd,1701,"50,122.56",Optional requirement only
Department of Health,Imperial College Healthcare NHS Trust,05/10/2017,Ext Contr Laundry,Nursing Directorate,Synergy Health Managed Services Ltd,3646146,"52,064.07",Optional requirement only
Department of Health,Imperial College Healthcare NHS Trust,05/10/2017,Ext Contr Laundry,Nursing Directorate,Synergy Health Managed Services Ltd,3646147,"56,484.99",Optional requirement only
Department of Health,Imperial College Healthcare NHS Trust,05/10/2017,Interpreting Services,Div Of Women & Clin Support,Oncall Interpreters Ltd [Cw],3640117,"41,152.43",Optional requirement only
Department of Health,Imperial College Healthcare NHS Trust,05/10/2017,Isotopes,Div Of Women & Clin Support,Mallinckrodt Rp Uk Ltd,3646985,"34,500.00",Optional requirement only
Department of Health,Imperial College Healthcare NHS Trust,05/10/2017,Isotopes,Div Of Women & Clin Support,Mallinckrodt Rp Uk Ltd,3646986,"55,500.00",Optional requirement only
Department of Health,Imperial College Healthcare NHS Trust,05/10/2017,Isotopes,Div Of Women & Clin Support,Mallinckrodt Rp Uk Ltd,3646988,"51,831.60",Optional requirement only
Department of Health,Imperial College Healthcare NHS Trust,05/10/2017,Jac - Stock,Stock,Genzyme Therapeutics Ltd,3639169,"262,074.00",Optional requirement only
Department of Health,Imperial College Healthcare NHS Trust,05/10/2017,Jac - Stock,Stock,Qualasept Ltd,3646862,"97,632.00",Optional requirement only
Department of Health,Imperial College Healthcare NHS Trust,05/10/2017,Med & Surg Equip Hire,Div Of Women & Clin Support,Medical Research Council,3635449,"34,320.00",Optional requirement only
Department of Health,Imperial College Healthcare NHS Trust,05/10/2017,Non-Nhs Pay Recharge In: Med,Div Of Med & Integrated Care,London Central & West Unscheduled Care Collab,3647602,"51,557.93",Optional requirement only
Department of Health,Imperial College Healthcare NHS Trust,05/10/2017,Other Research Exp - Non-Pay,Rd Medical Directorate,Central & North West London Nhs Ft,3646579,"80,144.00",Optional requirement only
Department of Health,Imperial College Healthcare NHS Trust,05/10/2017,Other Research Exp - Non-Pay,Rd Medical Directorate,Royal Brompton And Harefield Nhs Ft,3647380,"202,837.00",Optional requirement only
Department of Health,Imperial College Healthcare NHS Trust,05/10/2017,Other Research Exp - Non-Pay,Rd Medical Directorate,Royal Brompton And Harefield Nhs Ft,3647382,"202,837.00",Optional requirement only
Department of Health,Imperial College Healthcare NHS Trust,05/10/2017,Srvcsrecd-Foundationtrust,Pathology,Chelsea And  Westminster Hospital Nhs Ft,2231,"41,865.42",Optional requirement only
Department of Health,Imperial College Healthcare NHS Trust,05/10/2017,Thames Valley Housing Assoc,Housing Deductions,Thames Valley Charitable Housing,3646545,"105,327.04",Optional requirement only
Department of Health,Imperial College Healthcare NHS Trust,10/10/2017,Agency Admin & Clerical,"Div Of Surg, Cardiov & Cancer",Ideal Health Consultants Ltd,3649848,"49,151.66",Optional requirement only
Department of Health,Imperial College Healthcare NHS Trust,10/10/2017,Childcare Voucher (Kids Unltd),Childcare Vouchers,Sodexo Motivation Solutions Uk Ltd,2292,"68,473.35",Optional requirement only
Department of Health,Imperial College Healthcare NHS Trust,10/10/2017,Computer Software/License,Information & Comms Technology,Optimus It Infra Ltd,3650070,"69,606.00",Optional requirement only
Department of Health,Imperial College Healthcare NHS Trust,10/10/2017,Computer Software/License,Pathology,Sunquest Information Systems (Europe) Ltd,2284,"102,000.00",Optional requirement only
Department of Health,Imperial College Healthcare NHS Trust,10/10/2017,Drugs Nhs,Div Of Women & Clin Support,Lloyds Retail Chemists Ltd,3649469,"3,184,248.65",Optional requirement only
Department of Health,Imperial College Healthcare NHS Trust,10/10/2017,Drugs Nhs,Div Of Women & Clin Support,Nhs Business Services Authority,3648207,"39,887.39",Optional requirement only
Department of Health,Imperial College Healthcare NHS Trust,10/10/2017,Ext Contr Laundry,Nursing Directorate,Synergy Health Managed Services Ltd,3647943,"52,409.59",Optional requirement only
Department of Health,Imperial College Healthcare NHS Trust,10/10/2017,Isotopes,Div Of Women & Clin Support,Mallinckrodt Rp Uk Ltd,3650167,"31,519.20",Optional requirement only
Department of Health,Imperial College Healthcare NHS Trust,10/10/2017,It Eqpt-Additions,Capital Summary,Cdw Ltd,3648444,"100,282.56",Optional requirement only
Department of Health,Imperial College Healthcare NHS Trust,10/10/2017,It Eqpt-Additions,Capital Summary,Sdx Services Ltd,3644580,"127,200.00",Optional requirement only
Department of Health,Imperial College Healthcare NHS Trust,10/10/2017,P & M-Additions-Purchased,Capital Summary,Jackson Lift Services Limited,3649524,"48,000.00",Optional requirement only
Department of Health,Imperial College Healthcare NHS Trust,10/10/2017,P & M-Additions-Purchased,Capital Summary,Jackson Lift Services Limited,3649525,"48,000.00",Optional requirement only
Department of Health,Imperial College Healthcare NHS Trust,10/10/2017,P & M-Additions-Purchased,Capital Summary,Jackson Lift Services Limited,3649526,"90,000.00",Optional requirement only
Department of Health,Imperial College Healthcare NHS Trust,10/10/2017,P & M-Additions-Purchased,Capital Summary,Jackson Lift Services Limited,3649527,"48,000.00",Optional requirement only
Department of Health,Imperial College Healthcare NHS Trust,10/10/2017,Rent,"Div Of Surg, Cardiov & Cancer",Hanwell Health Centre,3643717,"30,041.05",Optional requirement only
Department of Health,Imperial College Healthcare NHS Trust,10/10/2017,Supplies Issues Recharges,Stock,Nhs Supply Chain,3649459,"40,536.23",Optional requirement only
Department of Health,Imperial College Healthcare NHS Trust,10/10/2017,Supplies Issues Recharges,Stock,Nhs Supply Chain,3649470,"172,817.93",Optional requirement only
Department of Health,Imperial College Healthcare NHS Trust,10/10/2017,Supplies Issues Recharges,Stock,Nhs Supply Chain,3649471,"138,475.70",Optional requirement only
Department of Health,Imperial College Healthcare NHS Trust,10/10/2017,Supplies Issues Recharges,Stock,Nhs Supply Chain,3649473,"108,395.84",Optional requirement only
Department of Health,Imperial College Healthcare NHS Trust,10/10/2017,Supplies Issues Recharges,Stock,Nhs Supply Chain,3649475,"145,202.57",Optional requirement only
Department of Health,Imperial College Healthcare NHS Trust,10/10/2017,Supplies Issues Recharges,Stock,Nhs Supply Chain,3649477,"146,479.55",Optional requirement only
Department of Health,Imperial College Healthcare NHS Trust,10/10/2017,Supplies Issues Recharges,Stock,Nhs Supply Chain,3649975,"139,518.78",Optional requirement only
Department of Health,Imperial College Healthcare NHS Trust,10/10/2017,Supplies Issues Recharges,Stock,Nhs Supply Chain,3649976,"162,051.53",Optional requirement only
Department of Health,Imperial College Healthcare NHS Trust,10/10/2017,Supplies Issues Recharges,Stock,Nhs Supply Chain,3649977,"121,820.56",Optional requirement only
Department of Health,Imperial College Healthcare NHS Trust,10/10/2017,Supplies Issues Recharges,Stock,Nhs Supply Chain,3649978,"156,731.62",Optional requirement only
Department of Health,Imperial College Healthcare NHS Trust,10/10/2017,Supplies Issues Recharges,Stock,Nhs Supply Chain,3649979,"144,872.11",Optional requirement only
Department of Health,Imperial College Healthcare NHS Trust,10/10/2017,Supplies Issues Recharges,Stock,Nhs Supply Chain,3649980,"155,922.94",Optional requirement only
Department of Health,Imperial College Healthcare NHS Trust,10/10/2017,Supplies Issues Recharges,Stock,Nhs Supply Chain,3649981,"140,515.12",Optional requirement only
Department of Health,Imperial College Healthcare NHS Trust,10/10/2017,Supplies Issues Recharges,Stock,Nhs Supply Chain,3649982,"116,385.55",Optional requirement only
Department of Health,Imperial College Healthcare NHS Trust,10/10/2017,Supplies Issues Recharges,Stock,Nhs Supply Chain,3649983,"111,270.58",Optional requirement only
Department of Health,Imperial College Healthcare NHS Trust,10/10/2017,Supplies Issues Recharges,Stock,Nhs Supply Chain,3649984,"142,224.31",Optional requirement only
Department of Health,Imperial College Healthcare NHS Trust,10/10/2017,Supplies Issues Recharges,Stock,Nhs Supply Chain,3650064,"133,849.56",Optional requirement only
Department of Health,Imperial College Healthcare NHS Trust,10/10/2017,Supplies Issues Recharges,Stock,Nhs Supply Chain,3650065,"151,761.13",Optional requirement only
Department of Health,Imperial College Healthcare NHS Trust,12/10/2017,Blood Products,Pathology,Nhs Blood And Transplant,1688,"330,791.08",Optional requirement only
Department of Health,Imperial College Healthcare NHS Trust,12/10/2017,Blood Products,Pathology,Nhs Blood And Transplant,2132,"169,495.67",Optional requirement only
Department of Health,Imperial College Healthcare NHS Trust,12/10/2017,Buildings-Additions-Purchased,Capital Summary,Willmott Dixon Construction,3651433,"328,404.00",Optional requirement only
Department of Health,Imperial College Healthcare NHS Trust,12/10/2017,Buildings-Additions-Purchased,Capital Summary,Willmott Dixon Construction,3651434,"588,337.20",Optional requirement only
Department of Health,Imperial College Healthcare NHS Trust,12/10/2017,Cx-Hh Consultant Load,Ichnt Balance Sheet,Dr Andrew Wright,3651731,"83,796.35",Optional requirement only
Department of Health,Imperial College Healthcare NHS Trust,12/10/2017,Cx-Hh Consultant Load,Ichnt Balance Sheet,Zahid Rehan Salim,3651848,"27,440.10",Optional requirement only
Department of Health,Imperial College Healthcare NHS Trust,12/10/2017,Dist Award - Local Cea,Div Of Med & Integrated Care,Imperial College London,3649541,"38,146.04",Optional requirement only
Department of Health,Imperial College Healthcare NHS Trust,12/10/2017,Dist Award - Nat Cea,Div Of Med & Integrated Care,Imperial College London,3649541,"95,844.88",Optional requirement only
Department of Health,Imperial College Healthcare NHS Trust,12/10/2017,Dist Award - Nat Cea,"Div Of Surg, Cardiov & Cancer",Imperial College London,3649541,"79,727.78",Optional requirement only
Department of Health,Imperial College Healthcare NHS Trust,12/10/2017,Dist Award - Nat Cea,Div Of Women & Clin Support,Imperial College London,3649541,"52,115.20",Optional requirement only
Department of Health,Imperial College Healthcare NHS Trust,12/10/2017,Dist Award - Nat Cea,Medical Director Summary,Imperial College London,3649541,"85,008.46",Optional requirement only
Department of Health,Imperial College Healthcare NHS Trust,12/10/2017,Ext Contract - Patient Travel,Nursing Directorate,Dhl Supply Chain  (Former Excel),3646526,"43,170.54",Optional requirement only
Department of Health,Imperial College Healthcare NHS Trust,12/10/2017,Ic Pay Recharge In: Med,Div Of Med & Integrated Care,Imperial College London,3649541,"189,424.43",Optional requirement only
Department of Health,Imperial College Healthcare NHS Trust,12/10/2017,Ic Pay Recharge In: Med,"Div Of Surg, Cardiov & Cancer",Imperial College London,3649541,"329,774.63",Optional requirement only
Department of Health,Imperial College Healthcare NHS Trust,12/10/2017,Ic Pay Recharge In: Med,Div Of Women & Clin Support,Imperial College London,3649541,"95,403.92",Optional requirement only
Department of Health,Imperial College Healthcare NHS Trust,12/10/2017,Jac - Stock,Stock,Bayer Plc,3645340,"118,514.40",Optional requirement only
Department of Health,Imperial College Healthcare NHS Trust,12/10/2017,Jac - Stock,Stock,Bayer Plc,3645341,"31,464.00",Optional requirement only
Department of Health,Imperial College Healthcare NHS Trust,12/10/2017,Jac - Stock,Stock,Csl Behring Uk Ltd,3645416,"40,625.00",Optional requirement only
Department of Health,Imperial College Healthcare NHS Trust,12/10/2017,Jac - Stock,Stock,Qualasept Ltd,3647884,"149,184.00",Optional requirement only
Department of Health,Imperial College Healthcare NHS Trust,12/10/2017,Med & Prof Fees (Imaging Cons),Ichnt Balance Sheet,Lindo Wing Radiology Llp,3651795,"154,276.75",Optional requirement only
Department of Health,Imperial College Healthcare NHS Trust,12/10/2017,Med & Surg Equip General,Div Of Women & Clin Support,Alliance Medical Ltd,3651866,"79,200.00",Optional requirement only
Department of Health,Imperial College Healthcare NHS Trust,12/10/2017,Med & Surg Equip General,Div Of Women & Clin Support,Alliance Medical Ltd,3651867,"79,200.00",Optional requirement only
Department of Health,Imperial College Healthcare NHS Trust,12/10/2017,Nhs Pay Recharge In: Other,Div Of Med & Integrated Care,Central London Community Healthcare Nhs Trust,3595499,"78,334.32",Optional requirement only
Department of Health,Imperial College Healthcare NHS Trust,12/10/2017,Other Research Exp - Non-Pay,Rd Medical Directorate,Imperial College London,3638519,"1,103,986.00",Optional requirement only
Department of Health,Imperial College Healthcare NHS Trust,12/10/2017,Other Transport Costs,Pathology,Dhl Supply Chain  (Former Excel),1689,"79,977.65",Optional requirement only
Department of Health,Imperial College Healthcare NHS Trust,12/10/2017,Purch Hcare Independent Sector,"Div Of Surg, Cardiov & Cancer",Bmi Healthcare Ltd,3652335,"28,472.60",Optional requirement only
Department of Health,Imperial College Healthcare NHS Trust,12/10/2017,Purch Hcare Independent Sector,"Div Of Surg, Cardiov & Cancer",Bmi Healthcare Ltd,3652338,"44,166.92",Optional requirement only
Department of Health,Imperial College Healthcare NHS Trust,12/10/2017,Rent,Nursing Directorate,Thames Valley Charitable Housing,3651914,"43,175.09",Optional requirement only
Department of Health,Imperial College Healthcare NHS Trust,12/10/2017,Season Ticket Cr Abellio,Ichnt Balance Sheet,Abellio Transport Holdings Ltd,3642587,"32,939.81",Optional requirement only
Department of Health,Imperial College Healthcare NHS Trust,12/10/2017,Taxi & Other Vehicle Hire,Nursing Directorate,Dhl Supply Chain  (Former Excel),3646525,"85,701.65",Optional requirement only
Department of Health,Imperial College Healthcare NHS Trust,18/10/2017,Agency Nursing: Qualified,Div Of Med & Integrated Care,Reed,3654276,"104,763.34",Optional requirement only
Department of Health,Imperial College Healthcare NHS Trust,18/10/2017,Agency Nursing: Qualified,Div Of Med & Integrated Care,Reed,3654329,"107,945.03",Optional requirement only
Department of Health,Imperial College Healthcare NHS Trust,18/10/2017,Agency Nursing: Qualified,"Div Of Surg, Cardiov & Cancer",Reed,3654276,"94,733.82",Optional requirement only
Department of Health,Imperial College Healthcare NHS Trust,18/10/2017,Agency Nursing: Qualified,"Div Of Surg, Cardiov & Cancer",Reed,3654329,"86,148.22",Optional requirement only
Department of Health,Imperial College Healthcare NHS Trust,18/10/2017,Agency Nursing: Qualified,Div Of Women & Clin Support,Reed,3654276,"43,463.69",Optional requirement only
Department of Health,Imperial College Healthcare NHS Trust,18/10/2017,Agency Nursing: Qualified,Div Of Women & Clin Support,Reed,3654329,"41,436.41",Optional requirement only
Department of Health,Imperial College Healthcare NHS Trust,18/10/2017,Agency Scient & Prof Qualified,Pathology,Reed,2500,"55,005.03",Optional requirement only
Department of Health,Imperial College Healthcare NHS Trust,18/10/2017,Buildings-Additions-Purchased,Capital Summary,Amber Group Limited,3653486,"49,785.46",Optional requirement only
Department of Health,Imperial College Healthcare NHS Trust,18/10/2017,Clinical Managed Service Contr,Pathology,Genmed.Me Ltd,2463,"699,000.00",Optional requirement only
Department of Health,Imperial College Healthcare NHS Trust,18/10/2017,Computer Maintenance,Information & Comms Technology,Cloud 21 Limited,3653586,"34,944.00",Optional requirement only
Department of Health,Imperial College Healthcare NHS Trust,18/10/2017,Computer Maintenance,Information & Comms Technology,Cloud 21 Limited,3653588,"34,944.00",Optional requirement only
Department of Health,Imperial College Healthcare NHS Trust,18/10/2017,Computer Software/License,Information & Comms Technology,Cerner Uk Ltd,3653530,"284,999.74",Optional requirement only
Department of Health,Imperial College Healthcare NHS Trust,18/10/2017,Computer Software/License,Information & Comms Technology,Dr Foster Limited,3653828,"143,040.00",Optional requirement only
Department of Health,Imperial College Healthcare NHS Trust,18/10/2017,Decontamination Services,Nursing Directorate,Berendsen Uk,3654489,"335,545.37",Optional requirement only
Department of Health,Imperial College Healthcare NHS Trust,18/10/2017,Dialysers,Div Of Med & Integrated Care,Baxter Healthcare Ltd,3654710,"104,090.70",Optional requirement only
Department of Health,Imperial College Healthcare NHS Trust,18/10/2017,Dialysers,Div Of Med & Integrated Care,Baxter Healthcare Ltd,3654711,"115,034.05",Optional requirement only
Department of Health,Imperial College Healthcare NHS Trust,18/10/2017,Income Tax Paye,Ichnt Balance Sheet,Hmrc Government Employers Account,3654805,"14,247,049.65",Optional requirement only
Department of Health,Imperial College Healthcare NHS Trust,18/10/2017,Jac - Stock,Stock,Roche Products Ltd,3642841,"69,865.44",Optional requirement only
Department of Health,Imperial College Healthcare NHS Trust,18/10/2017,Lease Rents,Nursing Directorate,London Borough Of Hammersmith/Fulham,3653498,"96,390.59",Optional requirement only
Department of Health,Imperial College Healthcare NHS Trust,18/10/2017,Med & Surg Maint Contract,"Div Of Surg, Cardiov & Cancer",Elekta Limited,3654691,"44,269.20",Optional requirement only
Department of Health,Imperial College Healthcare NHS Trust,18/10/2017,Other Research Exp - Pay,Rd Medical Directorate,The Hillingdon Hospital Nhs Foundation Trust,3653920,"40,272.00",Optional requirement only
Department of Health,Imperial College Healthcare NHS Trust,18/10/2017,Purch Hcare Independent Sector,Div Of Med & Integrated Care,Concordia Specialist Care Services Ltd,3639883,"37,302.89",Optional requirement only
Department of Health,Imperial College Healthcare NHS Trust,18/10/2017,Purch Hcare Independent Sector,"Div Of Surg, Cardiov & Cancer",Bmi Healthcare Ltd,3654490,"25,339.76",Optional requirement only
Department of Health,Imperial College Healthcare NHS Trust,18/10/2017,Purch Hcare Independent Sector,"Div Of Surg, Cardiov & Cancer",Bmi Healthcare Ltd,3654491,"39,516.89",Optional requirement only
Department of Health,Imperial College Healthcare NHS Trust,19/10/2017,Buildings-Additions-Purchased,Capital Summary,Gray Dungate Poole Ltd,3655720,"37,656.00",Optional requirement only
Department of Health,Imperial College Healthcare NHS Trust,19/10/2017,Clinical Managed Service Contr,"Div Of Surg, Cardiov & Cancer",Medtronic Ltd,3655734,"1,301,340.72",Optional requirement only
Department of Health,Imperial College Healthcare NHS Trust,19/10/2017,Drugs Pbr Excluded,"Div Of Surg, Cardiov & Cancer",Healthcare At Home Ltd,3653556,"30,800.00",Optional requirement only
Department of Health,Imperial College Healthcare NHS Trust,19/10/2017,Electricity,Nursing Directorate,Edf Energy Customer Plc,3652181,"33,353.35",Optional requirement only
Department of Health,Imperial College Healthcare NHS Trust,19/10/2017,Electricity,Nursing Directorate,Edf Energy Customer Plc,3652182,"81,214.25",Optional requirement only
Department of Health,Imperial College Healthcare NHS Trust,19/10/2017,Electricity,Nursing Directorate,Edf Energy Customer Plc,3652185,"231,972.11",Optional requirement only
Department of Health,Imperial College Healthcare NHS Trust,19/10/2017,Electricity,Nursing Directorate,Edf Energy Customer Plc,3652187,"242,079.32",Optional requirement only
Department of Health,Imperial College Healthcare NHS Trust,19/10/2017,Jac - Stock,Stock,Bayer Plc,3653939,"131,100.00",Optional requirement only
Department of Health,Imperial College Healthcare NHS Trust,19/10/2017,Jac - Stock,Stock,Roche Products Ltd,3642466,"65,958.30",Optional requirement only
Department of Health,Imperial College Healthcare NHS Trust,19/10/2017,Jac - Stock,Stock,Roche Products Ltd,3644982,"48,888.00",Optional requirement only
Department of Health,Imperial College Healthcare NHS Trust,19/10/2017,Med & Surg Equip Repair,Nursing Directorate,Ge Medical Systems Limited,3645601,"689,902.80",Optional requirement only
Department of Health,Imperial College Healthcare NHS Trust,19/10/2017,Med & Surg Maint Contract,"Div Of Surg, Cardiov & Cancer",Aurora Health Physics Services Ltd,3643685,"75,612.40",Optional requirement only
Department of Health,Imperial College Healthcare NHS Trust,19/10/2017,Other Research Exp - Non-Pay,Rd Medical Directorate,London North West Healthcare Nhs Trust,3644877,"399,645.00",Optional requirement only
Department of Health,Imperial College Healthcare NHS Trust,19/10/2017,Season Ticket Cr Abellio,Ichnt Balance Sheet,Abellio Transport Holdings Ltd,3649474,"44,805.10",Optional requirement only
Department of Health,Imperial College Healthcare NHS Trust,20/10/2017,Other Research Exp - Pay,Rdwomen And Children Division,Imperial College Trust,3598827,"32,176.40",Optional requirement only
Department of Health,Imperial College Healthcare NHS Trust,20/10/2017,Other Research Exp - Pay,Rdwomen And Children Division,Imperial College Trust,3598828,"87,522.51",Optional requirement only
Department of Health,Imperial College Healthcare NHS Trust,24/10/2017,Agency Scient & Prof Qualified,"Div Of Surg, Cardiov & Cancer",Reed,3653538,"34,050.50",Optional requirement only
Department of Health,Imperial College Healthcare NHS Trust,24/10/2017,Agency Scient & Prof Qualified,Pathology,Reed,2475,"45,113.58",Optional requirement only
Department of Health,Imperial College Healthcare NHS Trust,24/10/2017,Agency Scient & Prof Qualified,Pathology,Reed,2633,"50,431.81",Optional requirement only
Department of Health,Imperial College Healthcare NHS Trust,24/10/2017,Buildings-Additions-Purchased,Capital Summary,H&C Contracts Ltd,3658353,"49,723.02",Optional requirement only
Department of Health,Imperial College Healthcare NHS Trust,24/10/2017,Buildings-Additions-Purchased,Capital Summary,Princebuild Limited,3653485,"120,643.99",Optional requirement only
Department of Health,Imperial College Healthcare NHS Trust,24/10/2017,Clinical Managed Service Contr,Pathology,Genmed.Me Ltd,3658482,"113,776.20",Optional requirement only
Department of Health,Imperial College Healthcare NHS Trust,24/10/2017,Dialysers,Div Of Med & Integrated Care,Baxter Healthcare Ltd,3657923,"97,897.90",Optional requirement only
Department of Health,Imperial College Healthcare NHS Trust,24/10/2017,Drugs Nhs,Div Of Med & Integrated Care,London North West Healthcare Nhs Trust,3658263,"25,395.60",Optional requirement only
Department of Health,Imperial College Healthcare NHS Trust,24/10/2017,Ext Contract - Patient Travel,Nursing Directorate,Dhl Supply Chain  (Former Excel),3652111,"1,098,556.40",Optional requirement only
Department of Health,Imperial College Healthcare NHS Trust,24/10/2017,Ext Contract Portering,Nursing Directorate,Sodexo Limited,3657990,"442,637.83",Optional requirement only
Department of Health,Imperial College Healthcare NHS Trust,24/10/2017,Ext Contr Catering,Nursing Directorate,Sodexo Limited,3657990,"606,001.98",Optional requirement only
Department of Health,Imperial College Healthcare NHS Trust,24/10/2017,Ext Contr Domestics,Nursing Directorate,Sodexo Limited,3657990,"1,178,824.49",Optional requirement only
Department of Health,Imperial College Healthcare NHS Trust,24/10/2017,Ext Contr Oth Hotel Srv,Nursing Directorate,Sodexo Limited,3657990,"87,643.97",Optional requirement only
Department of Health,Imperial College Healthcare NHS Trust,24/10/2017,Hospitality,Press & Communications,Capita Travel And Events Ltd,3657759,"38,667.41",Optional requirement only
Department of Health,Imperial College Healthcare NHS Trust,24/10/2017,It Eqpt-Additions,Capital Summary,Cdw Ltd,3647341,"280,100.11",Optional requirement only
Department of Health,Imperial College Healthcare NHS Trust,24/10/2017,Jac - Stock,Stock,Genzyme Therapeutics Ltd,3654814,"464,970.00",Optional requirement only
Department of Health,Imperial College Healthcare NHS Trust,24/10/2017,Jac - Stock,Stock,Gilead Sciences Ltd,3657376,"43,394.74",Optional requirement only
Department of Health,Imperial College Healthcare NHS Trust,24/10/2017,Jac - Stock,Stock,Qualasept Ltd,3655904,"82,155.84",Optional requirement only
Department of Health,Imperial College Healthcare NHS Trust,24/10/2017,Organ Donor Expenses,"Div Of Surg, Cardiov & Cancer",The Anthony Nolan Trust,3658089,"27,062.88",Optional requirement only
Department of Health,Imperial College Healthcare NHS Trust,24/10/2017,Srvcsrecd-Other Nhs,Finance Directorate,Salford Royal Nhs Foundation Trust,3649481,"30,330.00",Optional requirement only
Department of Health,Imperial College Healthcare NHS Trust,24/10/2017,Supplies Issues Recharges,Stock,Nhs Supply Chain,3658325,"94,129.08",Optional requirement only
Department of Health,Imperial College Healthcare NHS Trust,24/10/2017,Supplies Issues Recharges,Stock,Nhs Supply Chain,3658328,"153,551.13",Optional requirement only
Department of Health,Imperial College Healthcare NHS Trust,24/10/2017,Supplies Issues Recharges,Stock,Nhs Supply Chain,3658329,"173,214.70",Optional requirement only
Department of Health,Imperial College Healthcare NHS Trust,26/10/2017,Agency Nursing: Qualified,Div Of Med & Integrated Care,Reed,3659813,"99,178.99",Optional requirement only
Department of Health,Imperial College Healthcare NHS Trust,26/10/2017,Agency Nursing: Qualified,"Div Of Surg, Cardiov & Cancer",Reed,3659813,"108,825.65",Optional requirement only
Department of Health,Imperial College Healthcare NHS Trust,26/10/2017,Agency Nursing: Qualified,Div Of Women & Clin Support,Reed,3659813,"55,975.41",Optional requirement only
Department of Health,Imperial College Healthcare NHS Trust,26/10/2017,Agency Scient & Prof Qualified,"Div Of Surg, Cardiov & Cancer",Reed,3659816,"47,383.66",Optional requirement only
Department of Health,Imperial College Healthcare NHS Trust,26/10/2017,Agency Scient & Prof Qualified,Pathology,Reed,2683,"54,629.17",Optional requirement only
Department of Health,Imperial College Healthcare NHS Trust,26/10/2017,Audit Fees: Internal,Finance Directorate,Tiaa Ltd,3651915,"57,120.00",Optional requirement only
Department of Health,Imperial College Healthcare NHS Trust,26/10/2017,Bldg/Eng Equip Maint/Rep,Nursing Directorate,Cbre Managed Services Ltd,3655709,"695,702.36",Optional requirement only
Department of Health,Imperial College Healthcare NHS Trust,26/10/2017,Buildings-Additions-Purchased,Capital Summary,Alarm Communication Limited,3653677,"50,322.58",Optional requirement only
Department of Health,Imperial College Healthcare NHS Trust,26/10/2017,Buildings-Additions-Purchased,Capital Summary,H&C Contracts Ltd,3658347,"53,110.87",Optional requirement only
Department of Health,Imperial College Healthcare NHS Trust,26/10/2017,Car Salary Sacrifice,Ichnt Balance Sheet,Tuskerdirect Ltd,3649491,"45,988.12",Optional requirement only
Department of Health,Imperial College Healthcare NHS Trust,26/10/2017,Childcare Voucher (Kids Unltd),Childcare Vouchers,Sodexo Limited,3651404,"68,884.18",Optional requirement only
Department of Health,Imperial College Healthcare NHS Trust,26/10/2017,Clinical Managed Service Contr,"Div Of Surg, Cardiov & Cancer",Chas A Blatchford And Sons Ltd,3646137,"41,446.00",Optional requirement only
Department of Health,Imperial College Healthcare NHS Trust,26/10/2017,Clinical Managed Service Contr,"Div Of Surg, Cardiov & Cancer",Medtronic Ltd,3655732,"1,442,776.26",Optional requirement only
Department of Health,Imperial College Healthcare NHS Trust,26/10/2017,Clinical Managed Service Contr,"Div Of Surg, Cardiov & Cancer",Medtronic Ltd,3657205,"1,077,177.84",Optional requirement only
Department of Health,Imperial College Healthcare NHS Trust,26/10/2017,Clinical Managed Service Contr,Pathology,Abbott Laboratories Ltd,2217,"171,318.55",Optional requirement only
Department of Health,Imperial College Healthcare NHS Trust,26/10/2017,Clinical Managed Service Contr,Pathology,Abbott Laboratories Ltd,2220,"357,175.50",Optional requirement only
Department of Health,Imperial College Healthcare NHS Trust,26/10/2017,Computer Maintenance,Information & Comms Technology,Cloud 21 Limited,3653589,"34,944.00",Optional requirement only
Department of Health,Imperial College Healthcare NHS Trust,26/10/2017,Computer Software/License,Information & Comms Technology,Optimus It Infra Ltd,3659892,"69,665.59",Optional requirement only
Department of Health,Imperial College Healthcare NHS Trust,26/10/2017,Computer Software/License,Information & Comms Technology,Qlickit  Ltd,3658962,"87,411.60",Optional requirement only
Department of Health,Imperial College Healthcare NHS Trust,26/10/2017,Computer Software/License,Information & Comms Technology,Varian Medical Systems Uk Ltd,3657987,"111,423.60",Optional requirement only
Department of Health,Imperial College Healthcare NHS Trust,26/10/2017,Gas,Nursing Directorate,Corona Energy,3652192,"55,203.71",Optional requirement only
Department of Health,Imperial College Healthcare NHS Trust,26/10/2017,Gas,Nursing Directorate,Corona Energy,3652196,"47,727.90",Optional requirement only
Department of Health,Imperial College Healthcare NHS Trust,26/10/2017,Gas,Nursing Directorate,Corona Energy,3652207,"38,034.13",Optional requirement only
Department of Health,Imperial College Healthcare NHS Trust,26/10/2017,Gas,Nursing Directorate,Corona Energy,3652218,"52,241.48",Optional requirement only
Department of Health,Imperial College Healthcare NHS Trust,26/10/2017,Jac - Stock,Stock,Csl Behring Uk Ltd,3654064,"32,500.00",Optional requirement only
Department of Health,Imperial College Healthcare NHS Trust,26/10/2017,Jac - Stock,Stock,Csl Behring Uk Ltd,3654065,"26,000.00",Optional requirement only
Department of Health,Imperial College Healthcare NHS Trust,26/10/2017,Laboratory Chemicals/ Reagents,Pathology,Sysmex Uk Ltd,2687,"227,621.90",Optional requirement only
Department of Health,Imperial College Healthcare NHS Trust,26/10/2017,Laboratory Chemicals/ Reagents,Pathology,Sysmex Uk Ltd,2688,"81,929.93",Optional requirement only
Department of Health,Imperial College Healthcare NHS Trust,26/10/2017,Legal Fees,Ravenscourt Directorate,Allen & Overy Llp,3653584,"37,096.20",Optional requirement only
Department of Health,Imperial College Healthcare NHS Trust,26/10/2017,Med & Surg Equip General,"Div Of Surg, Cardiov & Cancer",Carefusion Uk 306 Ltd,3652334,"60,000.00",Optional requirement only
Department of Health,Imperial College Healthcare NHS Trust,26/10/2017,Med & Surg Equip General,"Div Of Surg, Cardiov & Cancer",Medtronic Ltd,3655732,"44,231.14",Optional requirement only
Department of Health,Imperial College Healthcare NHS Trust,26/10/2017,Med & Surg Equip General,"Div Of Surg, Cardiov & Cancer",Medtronic Ltd,3657205,"102,112.42",Optional requirement only
Department of Health,Imperial College Healthcare NHS Trust,26/10/2017,Other Gen Supplies & Srv,Information & Comms Technology,Crown Records Management,3657922,"38,522.48",Optional requirement only
Department of Health,Imperial College Healthcare NHS Trust,26/10/2017,Other Research Exp - Non-Pay,Rd Medical Directorate,Central & North West London Nhs Ft,3648136,"80,144.00",Optional requirement only
Department of Health,Imperial College Healthcare NHS Trust,26/10/2017,Other Research Exp - Non-Pay,Rd Medical Directorate,Ealing Gp Limited,3652240,"120,000.00",Optional requirement only
Department of Health,Imperial College Healthcare NHS Trust,26/10/2017,Other Research Exp - Non-Pay,Rd Medical Directorate,H And Fgpf Limited,3652233,"60,751.80",Optional requirement only
Department of Health,Imperial College Healthcare NHS Trust,26/10/2017,Other Research Exp - Non-Pay,Rd Medical Directorate,London Ambulance Service Nhs Trust,3654365,"39,880.00",Optional requirement only
Department of Health,Imperial College Healthcare NHS Trust,26/10/2017,Patients Appl: Purchase,"Div Of Surg, Cardiov & Cancer",Chas A Blatchford And Sons Ltd,3653590,"38,026.64",Optional requirement only
Department of Health,Imperial College Healthcare NHS Trust,26/10/2017,P & M-Additions-Purchased,Capital Summary,Carefusion Uk 236 Ltd,3651875,"43,037.76",Optional requirement only
Department of Health,Imperial College Healthcare NHS Trust,26/10/2017,P & M-Additions-Purchased,Capital Summary,Haemonetics Limited,3653489,"33,480.00",Optional requirement only
Department of Health,Imperial College Healthcare NHS Trust,26/10/2017,P & M-Additions-Purchased,Capital Summary,Philips Healthcare,3651911,"45,080.78",Optional requirement only
Department of Health,Imperial College Healthcare NHS Trust,26/10/2017,Season Ticket Cr Abellio,Ichnt Balance Sheet,Abellio Transport Holdings Ltd,3649485,"47,226.82",Optional requirement only
Department of Health,Imperial College Healthcare NHS Trust,26/10/2017,Services Received - Nhsts,Pathology,Chelsea And  Westminster Hospital Nhs Ft,2670,"117,926.51",Optional requirement only
Department of Health,Imperial College Healthcare NHS Trust,26/10/2017,Stents,"Div Of Surg, Cardiov & Cancer",Cook Uk Ltd,3645967,"36,000.00",Optional requirement only
Department of Health,Imperial College Healthcare NHS Trust,26/10/2017,Transcription Services,Div Of Med & Integrated Care,Dictate It Ltd,3655632,"34,561.16",Optional requirement only
Department of Health,Imperial College Healthcare NHS Trust,26/10/2017,Transcription Services,"Div Of Surg, Cardiov & Cancer",Dictate It Ltd,3655634,"35,240.05",Optional requirement only
Department of Health,Imperial College Healthcare NHS Trust,29/03/2017,Buildings-Additions-Purchased,Capital Summary,Logan Construction (Se) Ltd,3544638,"71,886.96",
Department of Health,Imperial College Healthcare NHS Trust,29/03/2017,Buildings-Additions-Purchased,Capital Summary,Logan Construction (Se) Ltd,3544655,"121,298.40",
Department of Health,Imperial College Healthcare NHS Trust,29/03/2017,Buildings-Additions-Purchased,Capital Summary,Me Construction Ltd,3544664,"60,336.00",
Department of Health,Imperial College Healthcare NHS Trust,29/03/2017,Buildings-Add(Prof Fee)-Purch,Capital Summary,Eta  Projects Ltd,3544247,"40,041.74",
Department of Health,Imperial College Healthcare NHS Trust,29/03/2017,Clinical Managed Service Contr,Pathology,Beckman Coulter Uk Ltd,3544622,"52,114.84",
Department of Health,Imperial College Healthcare NHS Trust,29/03/2017,Computer Software/License,Pathology,Csc Computer Sciences Limited,3544287,"66,920.88",
Department of Health,Imperial College Healthcare NHS Trust,29/03/2017,Dialysers,Div Of Med & Integrated Care,Baxter Healthcare Ltd,3543643,"93,159.56",
Department of Health,Imperial College Healthcare NHS Trust,29/03/2017,Ext Contract - Patient Travel,Div Of Med & Integrated Care,Dhl Supply Chain  (Former Excel),3544698,"1,053,469.17",
Department of Health,Imperial College Healthcare NHS Trust,29/03/2017,Income Tax Paye,Ichnt Balance Sheet,Hmrc Government Employers Account,3545210,"4,000,000.00",
Department of Health,Imperial College Healthcare NHS Trust,29/03/2017,Items Pending Investigation,Capital Summary,Howorth Air Technology  Ltd,3544623,"55,213.20",
Department of Health,Imperial College Healthcare NHS Trust,29/03/2017,Med & Surg Equip General,Div Of Women & Clin Support,Alliance Medical Ltd,3544228,"73,920.00",
Department of Health,Imperial College Healthcare NHS Trust,29/03/2017,Med & Surg Equip General,Div Of Women & Clin Support,Alliance Medical Ltd,3544230,"76,560.00",
Department of Health,Imperial College Healthcare NHS Trust,29/03/2017,P & M-Additions-Purchased,Capital Summary,H + C Contracts Ltd,3544660,"121,153.54",
Department of Health,Imperial College Healthcare NHS Trust,29/03/2017,P & M-Additions-Purchased,Capital Summary,Jackson Lift Services Limited,3544658,"120,000.00",
Department of Health,Imperial College Healthcare NHS Trust,29/03/2017,P & M-Additions-Purchased,Capital Summary,Siemens Healthcare Ltd,3544195,"74,400.00",
Department of Health,Imperial College Healthcare NHS Trust,30/03/2017,Ext Contract - Patient Travel,Div Of Med & Integrated Care,Dhl Supply Chain  (Former Excel),3545541,"768,290.65",
Department of Health,Imperial College Healthcare NHS Trust,30/03/2017,Ext Contract - Patient Travel,"Div Of Surg, Cardiov & Cancer",Dhl Supply Chain  (Former Excel),3545541,"218,642.63",
Department of Health,Imperial College Healthcare NHS Trust,30/03/2017,Ext Contract - Patient Travel,Finance Directorate,Dhl Supply Chain  (Former Excel),3545541,"42,396.15",
Department of Health,Imperial College Healthcare NHS Trust,31/03/2017,Debt Recovery & Crd Ctrl,Finance Directorate,London Square Funding Strategies Ltd,3545840,"34,800.00",
Department of Health,Imperial College Healthcare NHS Trust,31/03/2017,Drugs Nhs,Div Of Women & Clin Support,Lloyds Retail Chemists Ltd,3545863,"3,227,331.67",
Department of Health,Imperial College Healthcare NHS Trust,31/03/2017,Legal Fees,Ravenscourt Directorate,Charles Russell Speechlys Llp,3530131,"145,000.00",
